[Event "EYCC O18-ch 2024"]
[Site "Prague"]
[Date "2024.08.22"]
[Round "1.4"]
[White "Sarabando, Rodrigo Andias"]
[Black "Gasparyan, Erik R."]
[Result "0-1"]
[ECO "A40"]
[WhiteElo "2046"]
[BlackElo "2350"]
[Annotator "RC"]
[PlyCount "110"]
[EventDate "2024.08.19"]
[EventType "swiss"]
[EventCountry "CZE"]
[SourceTitle "playchess.com"]
[Source "ChessBase"]
[SourceQuality "1"]
[TimeControl "5400+30"]

1. d4 {[%emt 0:00:05]} Nf6 {[%emt 0:00:16]} 2. c4 {[%emt 0:00:19]} e6 {[%emt 0:00:43]} 3. g3 {[%emt 0:00:24]} d5 {[%emt 0:00:32]} 4. Nf3 {[%emt 0:00:09]} Bb4+ {[%emt 0:00:52]} 5. Bd2 {[%emt 0:00:12]} Be7 {[%emt 0:00:23]} 6. Bg2 {[%emt 0:01:27]} O-O {[%emt 0:00:40]} 7. Qc2 {[%emt 0:01:14]} Nbd7 {[%emt 0:00:23]} 8. O-O {[%emt 0:00:18]} c6 {[%emt 0:00:28]} 9. Rd1 {[%emt 0:00:06]} a5 {[%emt 0:00:35]} 10. b3 {[%emt 0:04:42]} b6 {[%emt 0:04:03]} 11. Bc3 {[%emt 0:16:39]} Ba6 {[%emt 0:03:51]} 12. Nbd2 {[%emt 0:01:04]} b5 {[%emt 0:01:03]} 13. e4 {[%emt 0:07:27]} bxc4 {[%emt 0:20:44]} 14. bxc4 {[%emt 0:05:19]} dxe4 {[%emt 0:14:26]} 15. Ne5 {[%emt 0:04:29]} Qc7 {[%emt 0:10:18]} 16. Nxe4 {[%emt 0:05:49]} Nxe5 {[%emt 0:03:45]} 17. dxe5 {[%emt 0:01:50]} Nxe4 {[%emt 0:00:08]} 18. Qxe4 {[%emt 0:01:44]} Rfd8 {[%emt 0:08:22]} 19. Qxc6 {[%emt 0:05:49]} Qxc6 {[%emt 0:00:16]} 20. Bxc6 {[%emt 0:01:13]} Rac8 {[%emt 0:00:18]} 21. Bf3 {[%emt 0:01:49]} a4 {[%emt 0:02:16]} 22. Rxd8+ {[%emt 0:05:53]} Bxd8 {[%emt 0:02:07]} 23. Rd1 {[%emt 0:03:46]} Bxc4 {[%emt 0:05:31]} 24. Bc6 {[%emt 0:01:22]} Bxa2 {[%emt 0:02:32]} 25. Bxa4 {[%emt 0:00:11]} Bd5 {[%emt 0:00:14]} 26. Bd2 {[%emt 0:07:41]} Ra8 {[%emt 0:01:51]} 27. Bb5 {[%emt 0:02:48]} Bb6 {[%emt 0:03:02]} 28. Rc1 {[%emt 0:03:06]} h6 {[%emt 0:01:43]} 29. Bc6 {[%emt 0:01:23]} Ra2 {[%emt 0:02:15]} 30. Bxd5 {[%emt 0:06:24]} Rxd2 {[%emt 0:05:30]} 31. Rc8+ {[%emt 0:04:25]} Kh7 {[%emt 0:00:05]} 32. Be4+ {[%emt 0:00:04]} g6 {[%emt 0:00:04]} 33. Rc2 {[%emt 0:00:12]} Bxf2+ {[%emt 0:00:24]} 34. Kg2 {[%emt 0:00:16]} Rxc2 {[%emt 0:00:11]} 35. Bxc2 {[%emt 0:00:03]} Bd4 {[%emt 0:00:06]} 36. Kf3 {[%emt 0:01:40]} Bxe5 {[%emt 0:00:08]} 37. h3 {[%emt 0:00:08]} Kg7 {[%emt 0:02:37]} 38. Ba4 {[%emt 0:01:11]} Bc7 {[%emt 0:02:07]} 39. Bd7 {[%emt 0:00:55]} Bd6 {[%emt 0:00:09]} 40. Bc8 {[%emt 0:01:13]} Bc7 {[%emt 0:00:55]} 41. Bd7 {[%emt 0:00:08]} Kf6 {[%emt 0:00:10]} 42. Bc6 {[%emt 0:02:33]} Ke7 {[%emt 0:01:29]} 43. Bb5 {[%emt 0:00:45]} f5 {[%emt 0:01:14]} 44. g4 {[%emt 0:01:33]} e5 {[%emt 0:00:44]} 45. gxf5 {[%emt 0:02:27]} gxf5 {[%emt 0:00:05]} 46. Bc6 {[%emt 0:00:44]} Kf6 {[%emt 0:00:06]} 47. Bb7 {[%emt 0:00:14]} Kg5 {[%emt 0:00:07]} 48. Bc8 {[%emt 0:00:06]} e4+ {[%emt 0:01:22]} 49. Ke3 {[%emt 0:00:29]} Bb6+ {[%emt 0:00:07]} 50. Ke2 {[%emt 0:00:05]} f4 {[%emt 0:00:16]} 51. Bb7 {[%emt 0:01:28]} f3+ {[%emt 0:00:05]} 52. Kf1 {[%emt 0:00:13]} Kf4 {[%emt 0:00:08]} 53. Bc6 {[%emt 0:00:50]} e3 {[%emt 0:00:10]} 54. Bb5 {[%emt 0:00:21]} Kg3 {[%emt 0:00:05]} 55. h4 {[%emt 0:00:14]} Kxh4 {[%emt 0:00:05]} 0-1

[Event "EYCC O18-ch 2024"]
[Site "Prague"]
[Date "2024.08.22"]
[Round "1.5"]
[White "Macias Pino, Diego"]
[Black "Perets, Dmytro"]
[Result "1-0"]
[ECO "B15"]
[WhiteElo "2477"]
[BlackElo "2166"]
[Annotator "RC"]
[PlyCount "113"]
[EventDate "2024.08.19"]
[EventType "swiss"]
[EventCountry "CZE"]
[SourceTitle "playchess.com"]
[Source "ChessBase"]
[SourceQuality "1"]
[TimeControl "5400+30"]

1. e4 {[%emt 0:00:01]} c6 {[%emt 0:00:05]} 2. d4 {[%emt 0:01:58]} d5 {[%emt 0:00:05]} 3. Nc3 {[%emt 0:02:06]} dxe4 {[%emt 0:00:09]} 4. Nxe4 {[%emt 0:00:02]} Nf6 {[%emt 0:00:08]} 5. Nxf6+ {[%emt 0:00:03]} exf6 {[%emt 0:00:10]} 6. c3 {[%emt 0:00:02]} Bd6 {[%emt 0:00:07]} 7. Bd3 {[%emt 0:00:04]} Na6 {[%emt 0:00:04]} 8. Qc2 {[%emt 0:01:40]} Nc7 {[%emt 0:01:35]} 9. Ne2 {[%emt 0:01:26]} h5 {[%emt 0:02:08]} 10. c4 {[%emt 0:04:28]} Ne6 {[%emt 0:05:25]} 11. Bd2 {[%emt 0:03:20]} a5 {[%emt 0:05:37]} 12. f4 {[%emt 0:05:38]} Bb4 {[%emt 0:09:00]} 13. O-O-O {[%emt 0:01:46]} Kf8 {[%emt 0:04:14]} 14. Bc3 {[%emt 0:05:11]} Bd7 {[%emt 0:10:55]} 15. f5 {[%emt 0:01:31]} Nc7 {[%emt 0:00:44]} 16. Be4 {[%emt 0:02:54]} Ne8 {[%emt 0:10:37]} 17. c5 {[%emt 0:00:58]} Nc7 {[%emt 0:03:04]} 18. a3 {[%emt 0:01:14]} Bxc3 {[%emt 0:01:16]} 19. Nxc3 {[%emt 0:00:03]} g5 {[%emt 0:09:58]} 20. fxg6 {[%emt 0:01:59]} f5 {[%emt 0:00:01]} 21. Rhf1 {[%emt 0:03:15]} Qg5+ {[%emt 0:03:45]} 22. Qd2 {[%emt 0:01:13]} Qxd2+ {[%emt 0:00:14]} 23. Rxd2 {[%emt 0:00:11]} fxg6 {[%emt 0:08:56]} 24. d5 {[%emt 0:00:24]} cxd5 {[%emt 0:00:25]} 25. Nxd5 {[%emt 0:00:13]} Nxd5 {[%emt 0:01:30]} 26. Bxd5 {[%emt 0:00:02]} Rc8 {[%emt 0:00:48]} 27. b4 {[%emt 0:03:39]} axb4 {[%emt 0:04:07]} 28. axb4 {[%emt 0:00:16]} b6 {[%emt 0:00:53]} 29. Bc4 {[%emt 0:07:04]} Rh7 {[%emt 0:04:45]} 30. Rd6 {[%emt 0:05:27]} bxc5 {[%emt 0:06:47]} 31. b5 {[%emt 0:00:12]} Be8 {[%emt 0:02:56]} 32. b6 {[%emt 0:02:29]} Rd7 {[%emt 0:02:49]} 33. Rfd1 {[%emt 0:01:32]} Rxd6 {[%emt 0:00:14]} 34. Rxd6 {[%emt 0:00:01]} Ke7 {[%emt 0:00:21]} 35. b7 {[%emt 0:03:43]} Rb8 {[%emt 0:00:21]} 36. Rb6 {[%emt 0:00:02]} Kd7 {[%emt 0:01:59]} 37. Bd5 {[%emt 0:00:03]} Kc7 {[%emt 0:01:47]} 38. Rf6 {[%emt 0:00:14]} Rd8 {[%emt 0:00:30]} 39. Bf3 {[%emt 0:00:10]} Kb8 {[%emt 0:00:58]} 40. Ra6 {[%emt 0:01:50]} Kc7 {[%emt 0:00:11]} 41. h4 {[%emt 0:00:21]} Bf7 {[%emt 0:00:32]} 42. b8=Q+ {[%emt 0:01:36]} Rxb8 {[%emt 0:00:16]} 43. Ra7+ {[%emt 0:00:01]} Kd6 {[%emt 0:00:06]} 44. Rxf7 {[%emt 0:00:05]} Ke5 {[%emt 0:00:07]} 45. Rc7 {[%emt 0:05:54]} Kf4 {[%emt 0:00:17]} 46. Rc6 {[%emt 0:00:43]} Rg8 {[%emt 0:00:14]} 47. Rxc5 {[%emt 0:00:29]} Kg3 {[%emt 0:00:56]} 48. Rc4 {[%emt 0:03:00]} f4 {[%emt 0:00:16]} 49. Bd5 {[%emt 0:02:08]} Rd8 {[%emt 0:01:04]} 50. Bf3 {[%emt 0:01:10]} Rd6 {[%emt 0:00:22]} 51. Kc2 {[%emt 0:01:05]} Rf6 {[%emt 0:00:36]} 52. Kd3 {[%emt 0:01:52]} Kxh4 {[%emt 0:00:24]} 53. Rc1 {[%emt 0:00:54]} Kg3 {[%emt 0:01:11]} 54. Rh1 {[%emt 0:00:30]} Rd6+ {[%emt 0:00:26]} 55. Ke2 {[%emt 0:00:11]} Re6+ {[%emt 0:00:36]} 56. Kf1 {[%emt 0:00:03]} g5 {[%emt 0:00:13]} 57. Rh3# {[%emt 0:00:07]} 1-0

[Event "EYCC O18-ch 2024"]
[Site "Prague"]
[Date "2024.08.22"]
[Round "1.5"]
[White "Palczert, Matyas"]
[Black "Pedmanson, Albert"]
[Result "1-0"]
[ECO "C50"]
[WhiteElo "2341"]
[BlackElo "2045"]
[Annotator "RC"]
[PlyCount "73"]
[EventDate "2024.08.19"]
[EventType "swiss"]
[EventCountry "CZE"]
[SourceTitle "playchess.com"]
[Source "ChessBase"]
[SourceQuality "1"]
[TimeControl "5400+30"]

1. e4 {[%emt 0:00:03]} e5 {[%emt 0:00:14]} 2. Nf3 {[%emt 0:00:06]} Nc6 {[%emt 0:00:19]} 3. Bc4 {[%emt 0:00:11]} Nf6 {[%emt 0:00:11]} 4. d3 {[%emt 0:00:09]} Bc5 {[%emt 0:00:10]} 5. c3 {[%emt 0:00:20]} d6 {[%emt 0:00:05]} 6. O-O {[%emt 0:00:12]} O-O {[%emt 0:00:15]} 7. Re1 {[%emt 0:00:11]} Bb6 {[%emt 0:00:37]} 8. h3 {[%emt 0:02:55]} h6 {[%emt 0:03:14]} 9. Nbd2 {[%emt 0:00:18]} Ne7 {[%emt 0:00:32]} 10. d4 {[%emt 0:01:13]} Ng6 {[%emt 0:01:11]} 11. Bd3 {[%emt 0:05:02]} c6 {[%emt 0:03:04]} 12. Nf1 {[%emt 0:00:37]} Qc7 {[%emt 0:05:31]} 13. Be3 {[%emt 0:03:33]} Be6 {[%emt 0:05:04]} 14. Ng3 {[%emt 0:03:40]} Rad8 {[%emt 0:04:39]} 15. Qc2 {[%emt 0:02:31]} Rfe8 {[%emt 0:04:30]} 16. a4 {[%emt 0:04:40]} Qb8 {[%emt 0:02:55]} 17. a5 {[%emt 0:05:30]} Bc7 {[%emt 0:00:11]} 18. c4 Bd7 19. d5 {[%emt 0:12:11]} c5 {[%emt 0:11:04]} 20. Qd2 {[%emt 0:00:27]} Kh7 {[%emt 0:06:02]} 21. b4 {[%emt 0:03:49]} b6 {[%emt 0:04:21]} 22. axb6 {[%emt 0:03:07]} axb6 {[%emt 0:04:23]} 23. Nh2 {[%emt 0:00:37]} Qb7 24. bxc5 {[%emt 0:12:24]} dxc5 {[%emt 0:06:25]} 25. Bc2 {[%emt 0:02:07]} Ra8 {[%emt 0:02:34]} 26. Nf5 {[%emt 0:02:34]} Bxf5 {[%emt 0:16:30]} 27. exf5 {[%emt 0:00:09]} Ne7 {[%emt 0:00:22]} 28. Ng4 {[%emt 0:01:27]} Nxg4 {[%emt 0:09:02]} 29. f6+ {[%emt 0:01:14]} g6 {[%emt 0:00:47]} 30. hxg4 {[%emt 0:00:43]} Ng8 {[%emt 0:00:17]} 31. Ba4 {[%emt 0:02:35]} b5 {[%emt 0:08:21]} 32. Bxb5 {[%emt 0:00:48]} Rxa1 {[%emt 0:00:12]} 33. Rxa1 {[%emt 0:00:23]} Rd8 {[%emt 0:00:06]} 34. Bxc5 {[%emt 0:05:13]} Nxf6 {[%emt 0:02:14]} 35. Qe2 {[%emt 0:03:12]} Bb6 {[%emt 0:00:55]} 36. Bxb6 {[%emt 0:01:05]} Qxb6 {[%emt 0:00:01]} 37. Ra6 {[%emt 0:00:21]} 1-0

[Event "EYCC O18-ch 2024"]
[Site "Prague"]
[Date "2024.08.22"]
[Round "1.6"]
[White "Taranowicz, Michal"]
[Black "Razafindratsima, Timothe"]
[Result "0-1"]
[ECO "B40"]
[WhiteElo "2164"]
[BlackElo "2457"]
[Annotator "TA"]
[PlyCount "86"]
[EventDate "2024.08.19"]
[EventType "swiss"]
[EventCountry "CZE"]
[SourceTitle "playchess.com"]
[Source "ChessBase"]
[SourceQuality "1"]
[TimeControl "5400+30"]

{[%evp 12,86,12,15,14,25,23,0,0,-3,42,16,17,28,22,11,45,0,22,0,34,-16,-18,-65,-58,-94,-91,-93,-83,-80,-59,-67,-70,-59,-72,-73,-55,-60,-29,-55,-27,-230,-236,-224,-232,-239,-239,-206,-233,-245,-231,-227,-229,-235,-217,-233,-192,-285,-285,-282,-277,-547,-529,-619,-584,-739,-725,-757,-759,-1026,-989,-1300,-854,-854,-854,-854,-830]} 1. e4 {[%emt 0:00:02]} c5 {[%emt 0:00:20]} 2. Nf3 {[%emt 0:00:10]} e6 {[%emt 0:00:21]} 3. d4 {[%emt 0:00:04]} cxd4 {[%emt 0:00:09]} 4. Nxd4 {[%emt 0:00:04]} Nf6 {[%emt 0:00:12]} 5. Nc3 {[%emt 0:00:08]} Nc6 {[%emt 0:00:14]} 6. a3 {[%emt 0:00:07]} d6 {[%emt 0:12:44]} 7. Be3 {[%emt 0:03:03]} Be7 {[%emt 0:02:03]} 8. Be2 {[%emt 0:02:16]} O-O {[%emt 0:02:27]} 9. Qd2 {[%emt 0:10:17]} e5 {[%emt 0:10:12] The position is equal.} 10. Nb3 {[%emt 0:02:06]} Be6 {[%emt 0:00:20]} (10... Nxe4 $5 11. Nxe4 d5 $11) 11. Rd1 {[%emt 0:06:33]} a5 {[%emt 0:12:49][%cal Ba7a5,Ba5a4][%mdl 32]} 12. O-O {[%emt 0:07:26]} a4 {[%emt 0:13:03]} 13. Nc1 {[%emt 0:00:13]} h6 {[%emt 0:03:41]} 14. f4 {[%emt 0:14:26]} exf4 {[%emt 0:04:57]} 15. Bxf4 {[%emt 0:02:24][%cal Og1h1]} Ra5 {[%emt 0:02:23]} 16. Bf3 {[%emt 0:07:32]} (16. Bxd6 $2 {loses.} Qb6+ 17. Kh1 Rd8 $19 (17... Qxb2 18. Nd3 $11)) (16. Kh1 $1 $14) 16... Ne5 $11 {[%emt 0:02:36]} 17. Bxe5 {[%emt 0:16:53]} (17. Nd3 $11 {is more appropriate.}) 17... dxe5 $15 {[%emt 0:02:50]} ({But not} 17... Rxe5 18. Nd3 Qb6+ 19. Kh1 $11) 18. Qxd8 {[%emt 0:01:11]} Bxd8 {[%emt 0:00:02][%cal Be7d8,Bd8b6,Bb6d4][%mdl 32]} 19. Nd3 {[%emt 0:00:40]} Bb6+ {[%emt 0:14:51]} 20. Kh1 {[%emt 0:00:16]} Bc4 {[%emt 0:00:09]} 21. Rfe1 {[%emt 0:01:53][%cal Oc3d5]} Re8 {[%emt 0:06:45] Black is more active.} 22. g3 {[%emt 0:02:10]} g5 {[%emt 0:02:59]} 23. Rd2 {[%emt 0:06:34]} Kg7 {[%emt 0:02:29]} 24. Nb4 {[%emt 0:05:40]} Bd4 {[%emt 0:00:03]} 25. Nd1 {[%emt 0:00:31]} Be6 {[%emt 0:01:20]} 26. Ne3 $2 {[%emt 0:01:00] Now White is beyond hope.} (26. c3 $11 Ba7 27. Ne3) 26... Bxb2 $19 {[%emt 0:00:43] A strong pair of Bishops.} 27. Rd3 {[%emt 0:01:19] Repels Bc3} Rc5 {[%emt 0:01:06]} 28. Nbd5 {[%emt 0:06:58]} Bxd5 {[%emt 0:00:32]} 29. Nxd5 {[%emt 0:02:05]} Nxd5 {[%emt 0:00:26]} 30. exd5 {[%emt 0:00:22]} Rxc2 {[%emt 0:00:24]} 31. d6 {[%emt 0:00:36]} b5 {[%emt 0:00:03]} 32. Bd1 {[%emt 0:00:49]} Rc1 {[%emt 0:00:24][%cal Ob5b4] ...b4! would now be deadly.} 33. Re2 {[%emt 0:00:35]} Bxa3 {[%emt 0:00:17]} 34. Kg2 {[%emt 0:00:24]} (34. d7 $142 Rd8 35. Rxe5) 34... Rd8 {[%emt 0:00:41]} 35. d7 {[%emt 0:00:26]} f6 {[%emt 0:00:21] ...Bc5 is the strong threat.} 36. Bc2 $2 {[%emt 0:00:32]} (36. Bxa4 bxa4 37. Rxa3) 36... Bc5 {[%emt 0:01:32] Black is clearly winning.} 37. Rd5 {[%emt 0:00:12] [#]} a3 $1 {[%emt 0:00:04]} 38. Bb3 {[%emt 0:00:53]} (38. Bd1 Kf8) 38... Rc3 {[%emt 0:00:08]} 39. Ba2 {[%emt 0:00:34]} b4 {[%emt 0:00:04]} 40. Red2 {[%emt 0:00:30]} Be3 {[%emt 0:00:21]} 41. R2d3 {[%emt 0:00:33]} Bd4 {[%emt 0:00:47]} 42. Rxc3 {[%emt 0:00:32]} bxc3 {[%emt 0:00:06]} 43. Bb3 {[%emt 0:00:10] [#]} c2 $1 {[%emt 0:00:26] Weighted Error Value: White=0.71/Black=0.09 (flawless) .  Loses game:     	White=1     	---        Mistake:       	White=4     	---        Inaccurate:     	White=2     	Black=5      OK:         	White=9     	Black=14     Best:        	White=2     	Black=1} 0-1

[Event "EYCC O18-ch 2024"]
[Site "Prague"]
[Date "2024.08.22"]
[Round "1.6"]
[White "Sheahan, Ben"]
[Black "Olenik Campa, Rudi"]
[Result "1/2-1/2"]
[ECO "A40"]
[WhiteElo "2043"]
[BlackElo "2335"]
[Annotator "RC"]
[PlyCount "127"]
[EventDate "2024.08.19"]
[EventType "swiss"]
[EventCountry "CZE"]
[SourceTitle "playchess.com"]
[Source "ChessBase"]
[SourceQuality "1"]
[TimeControl "5400+30"]

1. d4 {[%emt 0:00:06]} e6 {[%emt 0:00:12]} 2. Nf3 {[%emt 0:00:22]} Nf6 {[%emt 0:00:34]} 3. g3 {[%emt 0:00:26]} d5 {[%emt 0:00:51]} 4. Bg2 {[%emt 0:00:05]} Bd6 {[%emt 0:09:41]} 5. O-O {[%emt 0:01:37]} O-O {[%emt 0:01:45]} 6. c4 {[%emt 0:02:42]} Nc6 {[%emt 0:01:07]} 7. Nbd2 {[%emt 0:13:04]} Re8 {[%emt 0:03:45]} 8. a3 {[%emt 0:03:46]} Bf8 {[%emt 0:06:32]} 9. b4 {[%emt 0:07:33]} dxc4 {[%emt 0:10:58]} 10. Nxc4 {[%emt 0:01:44]} Qd5 {[%emt 0:07:58]} 11. Nce5 {[%emt 0:25:20]} a5 {[%emt 0:07:17]} 12. Nxc6 {[%emt 0:07:31]} Qxc6 {[%emt 0:00:12]} 13. bxa5 {[%emt 0:08:11]} Rxa5 {[%emt 0:01:58]} 14. a4 {[%emt 0:01:39]} Bb4 {[%emt 0:02:59]} 15. Bd2 {[%emt 0:03:55]} Bxd2 {[%emt 0:02:25]} 16. Nxd2 {[%emt 0:00:59]} Qa6 {[%emt 0:00:05]} 17. e3 {[%emt 0:03:34]} Qa7 {[%emt 0:11:17]} 18. Qc2 {[%emt 0:01:27]} b5 {[%emt 0:05:50]} 19. Nb3 {[%emt 0:02:32]} Rxa4 {[%emt 0:00:18]} 20. Bc6 {[%emt 0:02:08]} Bd7 {[%emt 0:00:08]} 21. Bxd7 {[%emt 0:00:31]} Nxd7 {[%emt 0:00:05]} 22. Qc6 {[%emt 0:00:34]} Nf6 {[%emt 0:00:05]} 23. Qxb5 {[%emt 0:00:44]} Rxa1 {[%emt 0:00:04]} 24. Rxa1 {[%emt 0:00:05]} Qb6 {[%emt 0:00:04]} 25. Qc4 {[%emt 0:02:15]} h5 {[%emt 0:00:16]} 26. h4 {[%emt 0:01:30]} Rb8 {[%emt 0:00:04]} 27. Nc5 {[%emt 0:00:33]} Qc6 {[%emt 0:01:00]} 28. Rc1 {[%emt 0:02:00]} Qf3 {[%emt 0:01:10]} 29. Nd3 {[%emt 0:02:23]} Ng4 {[%emt 0:01:22]} 30. Qxc7 {[%emt 0:01:13]} Rb2 {[%emt 0:00:31]} 31. Qf4 {[%emt 0:00:22]} Qxf4 {[%emt 0:01:13]} 32. exf4 {[%emt 0:00:30]} Rd2 {[%emt 0:00:08]} 33. Rc3 {[%emt 0:00:27]} Kf8 {[%emt 0:02:32]} 34. Kf1 {[%emt 0:01:43]} Ke7 {[%emt 0:00:04]} 35. Rb3 {[%emt 0:00:37]} Kf6 {[%emt 0:00:40]} 36. Ke1 {[%emt 0:00:30]} Ra2 {[%emt 0:00:02]} 37. Rb2 {[%emt 0:00:21]} Ra4 {[%emt 0:00:55]} 38. Nb4 {[%emt 0:00:40]} Ra1+ {[%emt 0:03:56]} 39. Ke2 {[%emt 0:00:09]} Ra5 {[%emt 0:01:56]} 40. Kf3 {[%emt 0:03:38]} Ra3+ {[%emt 0:00:02]} 41. Ke2 {[%emt 0:00:29]} Ra5 {[%emt 0:00:28]} 42. Kf3 {[%emt 0:00:06]} Kf5 {[%emt 0:00:06]} 43. Rb3 {[%emt 0:00:20]} Rb5 {[%emt 0:01:55]} 44. Rb2 {[%emt 0:00:15]} Ra5 {[%emt 0:03:12]} 45. Rb3 {[%emt 0:00:12]} Kg6 {[%emt 0:02:10]} 46. Nd3 {[%emt 0:00:23]} f6 {[%emt 0:01:53]} 47. Nb4 {[%emt 0:00:38]} Ra4 {[%emt 0:01:10]} 48. Kg2 {[%emt 0:01:03]} f5 {[%emt 0:00:39]} 49. Rb2 {[%emt 0:00:23]} Nf6 {[%emt 0:03:01]} 50. Nc6 {[%emt 0:00:32]} Kf7 {[%emt 0:02:40]} 51. Ne5+ {[%emt 0:00:12]} Kg8 {[%emt 0:00:17]} 52. Nf3 {[%emt 0:00:42]} Ne4 {[%emt 0:01:06]} 53. Rc2 {[%emt 0:00:44]} Kh7 {[%emt 0:00:41]} 54. Re2 {[%emt 0:00:17]} Kg6 {[%emt 0:01:17]} 55. Ng5 {[%emt 0:00:29]} Nxg5 {[%emt 0:01:19]} 56. hxg5 {[%emt 0:00:16]} Rxd4 {[%emt 0:00:04]} 57. Rxe6+ {[%emt 0:00:08]} Kf7 {[%emt 0:00:02]} 58. Ra6 {[%emt 0:00:17]} g6 {[%emt 0:00:04]} 59. Ra7+ {[%emt 0:00:06]} Kf8 {[%emt 0:00:13]} 60. Kf3 {[%emt 0:00:26]} Re4 {[%emt 0:00:11]} 61. Ra2 {[%emt 0:01:02]} Kf7 {[%emt 0:00:05]} 62. Re2 {[%emt 0:00:30]} Ra4 {[%emt 0:00:03]} 63. Ke3 {[%emt 0:01:01]} Rb4 {[%emt 0:00:21]} 64. Kf3 1/2-1/2

[Event "EYCC O18-ch 2024"]
[Site "Prague"]
[Date "2024.08.22"]
[Round "1.7"]
[White "Stalmach, Richard"]
[Black "Jackson, Edward"]
[Result "1-0"]
[ECO "D35"]
[WhiteElo "2443"]
[BlackElo "2156"]
[Annotator "RC"]
[PlyCount "57"]
[EventDate "2024.08.19"]
[EventType "swiss"]
[EventCountry "CZE"]
[SourceTitle "playchess.com"]
[Source "ChessBase"]
[SourceQuality "1"]
[TimeControl "5400+30"]

1. d4 {[%emt 0:00:03]} d5 {[%emt 0:00:12]} 2. c4 {[%emt 0:00:07]} e6 {[%emt 0:00:07]} 3. Nc3 {[%emt 0:00:18]} Nf6 {[%emt 0:00:08]} 4. Nf3 {[%emt 0:00:04]} Nbd7 {[%emt 0:00:12]} 5. cxd5 {[%emt 0:02:24]} exd5 {[%emt 0:00:08]} 6. Bf4 {[%emt 0:01:17]} c6 {[%emt 0:00:30]} 7. h3 {[%emt 0:00:32]} Be7 {[%emt 0:01:54]} 8. e3 {[%emt 0:00:09]} O-O {[%emt 0:01:07]} 9. Bd3 {[%emt 0:01:25]} Re8 {[%emt 0:00:47]} 10. O-O {[%emt 0:00:06]} Nf8 {[%emt 0:00:25]} 11. Ne5 {[%emt 0:00:21]} Bd6 {[%emt 0:00:50]} 12. Bg3 {[%emt 0:00:25]} Ng6 {[%emt 0:04:59]} 13. f4 {[%emt 0:00:36]} Ne7 {[%emt 0:07:32]} 14. f5 {[%emt 0:00:23]} c5 {[%emt 0:05:29]} 15. Bh4 {[%emt 0:01:22]} Nc6 {[%emt 0:10:34]} 16. Nxd5 {[%emt 0:01:41]} Bxe5 {[%emt 0:01:59]} 17. dxe5 {[%emt 0:01:03]} Qxd5 {[%emt 0:01:10]} 18. exf6 {[%emt 0:00:27]} Ne5 {[%emt 0:08:46]} 19. Bb5 {[%emt 0:01:40]} Qxd1 {[%emt 0:01:48]} 20. Raxd1 {[%emt 0:00:30]} Nc6 {[%emt 0:01:31]} 21. fxg7 {[%emt 0:00:26]} Kxg7 {[%emt 0:01:48]} 22. Rd6 {[%emt 0:01:38]} a6 {[%emt 0:01:51]} 23. Bxc6 {[%emt 0:03:06]} bxc6 {[%emt 0:00:09]} 24. Rf4 {[%emt 0:03:46]} Kf8 {[%emt 0:05:07]} 25. Rh6 {[%emt 0:08:27]} Rxe3 {[%emt 0:04:00]} 26. Rxh7 {[%emt 0:00:08]} Ke8 {[%emt 0:01:45]} 27. Rg4 {[%emt 0:00:05]} Bxf5 {[%emt 0:05:08]} 28. Rg8+ {[%emt 0:00:10]} Kd7 {[%emt 0:00:06]} 29. Rxf7+ {[%emt 0:00:03]} 1-0

[Event "EYCC O18-ch 2024"]
[Site "Prague"]
[Date "2024.08.22"]
[Round "1.7"]
[White "Baranciuc, Alexandr"]
[Black "Andries, Alf"]
[Result "1/2-1/2"]
[ECO "A35"]
[WhiteElo "2332"]
[BlackElo "2024"]
[Annotator "RC"]
[PlyCount "160"]
[EventDate "2024.08.19"]
[EventType "swiss"]
[EventCountry "CZE"]
[SourceTitle "playchess.com"]
[Source "ChessBase"]
[SourceQuality "1"]
[TimeControl "5400+30"]

1. c4 c5 2. Nc3 Nc6 3. Nf3 e5 4. e3 Nf6 5. d4 e4 6. d5 exf3 7. dxc6 dxc6 8. Qxd8+ Kxd8 9. gxf3 g6 10. b3 Bg7 11. Bb2 b6 12. O-O-O+ Ke7 13. Bg2 Bd7 14. Ne2 Nh5 15. Ng3 Bxb2+ 16. Kxb2 Ng7 17. f4 h5 18. Ne4 Rhd8 19. Ng5 Ne6 20. Nf3 f6 21. Rhg1 Be8 22. Rxd8 Rxd8 23. Kc1 Rd6 24. f5 Nf8 25. fxg6 Nxg6 26. Bh3 Kf7 27. Bf5 Ne5 28. Nxe5+ fxe5 29. h4 Kf6 30. Rg5 Bf7 31. Be4 b5 32. cxb5 cxb5 33. Bf3 Rd8 34. Bxh5 Bxh5 35. Rxh5 Rg8 36. Rh6+ Kf5 37. Ra6 Ke4 38. Rxa7 Rg2 39. Rf7 Rh2 40. Kd2 Rxh4 41. Rb7 b4 42. Rc7 Kd5 43. Rd7+ Ke6 44. Rc7 Kd5 45. Kd3 e4+ 46. Kc2 Rh1 47. Rd7+ Kc6 48. Rd2 Rf1 49. Kb2 Kb5 50. a3 bxa3+ 51. Kxa3 Ra1+ 52. Kb2 Rf1 53. Kc3 Rc1+ 54. Kb2 Rf1 55. Re2 Kb4 56. Rc2 Kb5 57. Kc3 Rd1 58. Ra2 Rd3+ 59. Kc2 c4 60. bxc4+ Kxc4 61. Ra5 Rc3+ 62. Kd2 Rb3 63. Re5 Rb2+ 64. Ke1 Rb1+ 65. Ke2 Rb2+ 66. Kf1 Rb1+ 67. Kg2 Kd3 68. Rd5+ Ke2 69. Kg3 Rb8 70. Rf5 Rg8+ 71. Kf4 Kxf2 72. Kxe4+ Ke2 73. Re5 Rg4+ 74. Kd5 Ra4 75. Ke6 Kf3 76. Kf5 Rh4 77. Re8 Rh5+ 78. Kg6 Rh4 79. e4 Rxe4 80. Rxe4 Kxe4 1/2-1/2

[Event "EYCC O18-ch 2024"]
[Site "Prague"]
[Date "2024.08.22"]
[Round "1.8"]
[White "Trushko, Andrii"]
[Black "Levin, Guy"]
[Result "0-1"]
[ECO "D00"]
[WhiteElo "2154"]
[BlackElo "2436"]
[Annotator "RC"]
[PlyCount "38"]
[EventDate "2024.08.19"]
[EventType "swiss"]
[EventCountry "CZE"]
[SourceTitle "playchess.com"]
[Source "ChessBase"]
[SourceQuality "1"]
[TimeControl "5400+30"]

1. d4 {[%emt 0:00:07]} d5 {[%emt 0:00:09]} 2. Bf4 {[%emt 0:00:17]} Nf6 {[%emt 0:00:32]} 3. e3 {[%emt 0:00:38]} c5 {[%emt 0:00:11]} 4. c3 {[%emt 0:00:12]} Nc6 {[%emt 0:00:10]} 5. Nd2 {[%emt 0:00:31]} e6 {[%emt 0:00:06]} 6. Ngf3 {[%emt 0:00:38]} Nh5 {[%emt 0:00:30]} 7. Bg5 {[%emt 0:00:37]} f6 {[%emt 0:00:05]} 8. Bh4 {[%emt 0:00:13]} g6 {[%emt 0:00:17]} 9. Be2 {[%emt 0:08:10]} cxd4 {[%emt 0:05:29]} 10. cxd4 {[%emt 0:00:37]} Be7 {[%emt 0:04:01]} 11. O-O {[%emt 0:06:17]} O-O {[%emt 0:00:55]} 12. Re1 {[%emt 0:15:03]} g5 {[%emt 0:03:41]} 13. Bg3 {[%emt 0:00:03]} g4 {[%emt 0:01:02]} 14. Nh4 {[%emt 0:01:21]} f5 {[%emt 0:02:21]} 15. Bxg4 {[%emt 0:00:17]} fxg4 {[%emt 0:02:02]} 16. Qxg4+ {[%emt 0:00:09]} Ng7 {[%emt 0:00:12]} 17. f4 {[%emt 0:00:47]} h5 {[%emt 0:03:03]} 18. Qh3 {[%emt 0:00:39]} e5 {[%emt 0:00:07]} 19. f5 {[%emt 0:00:03]} Rxf5 {[%emt 0:00:20]} 0-1